fUSD/lending_fUSD_20240802
["ID","MTS","AMOUNT","RATE_DAILY","PERIOD"]
[333896706,1722610237069,-500.0,0.00019178,2]
[333896707,1722610237078,-539.73,0.00019178,2]
[333896708,1722610237088,-500.0,0.00019178,2]
[333896709,1722610237097,-500.0,0.00019178,2]
[333896710,1722610237106,-515.37,0.00019178,2]
[333896711,1722610237116,-1716.68,0.00019178,2]
[333896712,1722610237129,-500.0,0.00019178,2]
[333896713,1722610237138,-500.0,0.00019178,2]
[333896714,1722610237148,-150.0,0.00019178,2]
[333896715,1722610237158,-500.0,0.00019178,2]
[333896716,1722610237167,-500.0,0.00019178,2]
[333896717,1722610237177,-500.0,0.00019178,2]
[333896718,1722610237188,-1361.98,0.00019178,2]
[333896719,1722610237198,-500.0,0.00019178,2]
[333896720,1722610237207,-500.0,0.00019178,2]
[333896721,1722610237217,-500.0,0.00019178,2]
[333896722,1722610237227,-500.0,0.00019178,2]
[333896723,1722610237237,-500.0,0.00019178,2]
[333896724,1722610237247,-500.0,0.00019178,2]
[333896725,1722610237257,-2492.2,0.00019178,2]
[333896726,1722610237267,-500.0,0.00019178,2]
[333896727,1722610237277,-500.0,0.00019178,2]
[333896728,1722610237287,-699.59,0.00019178,2]
[333896729,1722610237296,-605.43195073,0.00019178,2]
[333896730,1722610237307,-500.0,0.00019178,2]
[333896731,1722610237317,-500.0,0.00019178,2]
[333896732,1722610237326,-500.0,0.00019178,2]
[333896733,1722610237336,-632.16,0.00019178,2]
[333896734,1722610237346,-1164.83,0.00019178,2]
[333896735,1722610237356,-500.0,0.00019178,2]
[333896736,1722610237366,-682.49,0.00019178,2]
[333896737,1722610237383,-500.0,0.00019178,2]
[333896738,1722610237392,-747.69,0.00019178,2]
[333896739,1722610237402,-1750.97,0.00019178,2]
[333896740,1722610237412,-910.8,0.00019178,2]
[333896741,1722610237421,-544.15,0.00019178,2]
[333896742,1722610237430,-500.0,0.00019178,2]
[333896743,1722610237440,-759.17,0.00019178,2]
[333896744,1722610237450,-500.0,0.00019178,2]
[333896745,1722610237460,-969.39,0.00019178,2]
[333896746,1722610237470,-500.0,0.00019178,2]
[333896747,1722610237480,-809.53,0.00019178,2]
[333896748,1722610237489,-736.32,0.00019178,2]
[333896749,1722610237499,-630.2,0.00019178,2]
[333896750,1722610237509,-1203.49,0.00019178,2]
[333896751,1722610237518,-1517.65,0.00019178,2]
[333896752,1722610237528,-500.0,0.00019178,2]
[333896753,1722610237538,-500.0,0.00019178,2]
[333896754,1722610237548,-500.0,0.00019178,2]
[333896755,1722610237557,-690.89,0.00019178,2]
[333896756,1722610237567,-1454.17,0.00019178,2]
[333896757,1722610237579,-1123.04,0.00019178,2]
[333896758,1722610237591,-869.02,0.00019178,2]
[333896759,1722610237601,-923.43,0.00019178,2]
[333896760,1722610237611,-1889.83,0.00019178,2]
[333896761,1722610237624,-500.0,0.00019178,2]
[333896762,1722610237634,-500.0,0.00019178,2]
[333896764,1722610237643,-912.42,0.00019178,2]
[333896765,1722610237653,-649.75,0.00019178,2]
[333896766,1722610237662,-652.17,0.00019178,2]
[333896767,1722610237673,-1787.59,0.00019178,2]
[333896768,1722610237682,-500.0,0.00019178,2]
[333896769,1722610237692,-500.0,0.00019178,2]
[333896770,1722610237702,-2499.92,0.00019178,2]
[333896771,1722610237712,-150.4486116,0.00019178,2]
[333896772,1722610237721,-574.95,0.00019178,2]
[333896773,1722610237731,-500.0,0.00019178,2]
[333896774,1722610237741,-697.67,0.00019178,2]
[333896775,1722610237751,-500.0,0.00019178,2]
[333896776,1722610237761,-500.0,0.00019178,2]
[333896777,1722610237770,-500.0,0.00019178,2]
[333896778,1722610237780,-500.0,0.00019178,2]
[333896779,1722610237790,-913.98,0.00019178,2]
[333896780,1722610237800,-500.0,0.00019178,2]
[333896781,1722610237810,-500.0,0.00019178,2]
[333896782,1722610237820,-500.0,0.00019178,2]
[333896783,1722610237830,-573.37,0.00019178,2]
[333896784,1722610237840,-590.62,0.00019178,2]
[333896785,1722610237851,-500.0,0.00019178,2]
[333896786,1722610237860,-500.0,0.00019178,2]
[333896787,1722610237874,-1942.0,0.00019178,2]
[333896788,1722610237884,-1031.48,0.00019178,2]
[333896789,1722610237894,-500.0,0.00019178,2]
[333896790,1722610237904,-500.0,0.00019178,2]
[333896791,1722610237914,-500.0,0.00019178,2]
[333896792,1722610237925,-500.0,0.00019178,2]
[333896793,1722610237935,-500.0,0.00019178,2]
[333896794,1722610237944,-500.0,0.00019178,2]
[333896795,1722610237954,-400.0,0.00019178,2]
[333896796,1722610237964,-1565.14,0.00019178,2]
[333896797,1722610237975,-500.0,0.00019178,2]
[333896798,1722610237984,-500.0,0.00019178,2]
[333896799,1722610237995,-500.0,0.00019178,2]
[333896800,1722610238005,-500.0,0.00019178,2]
[333896801,1722610238015,-500.0,0.00019178,2]
[333896802,1722610238024,-500.0,0.00019178,2]
[333896803,1722610238033,-1079.91,0.00019178,2]
[333896804,1722610238043,-752.33,0.00019178,2]
[333896805,1722610238053,-579.58,0.00019178,2]
[333896806,1722610238063,-1396.88,0.00019178,2]
[333896807,1722610238073,-500.0,0.00019178,2]
[333896808,1722610238083,-218.59637428,0.00019178,2]
[333896809,1722610238093,-1706.67,0.00019178,2]
[333896810,1722610238103,-500.0,0.00019178,2]
[333896811,1722610238113,-2179.94,0.00019178,2]
[333896812,1722610238129,-641.06,0.00019178,2]
[333896813,1722610238139,-1724.95,0.00019178,2]
[333896814,1722610238155,-1776.16,0.00019178,2]
[333896815,1722610238164,-376.87362967,0.00019178,2]
[333896816,1722610238174,-1413.42,0.00019178,2]
[333896817,1722610238184,-500.0,0.00019178,2]
[333896818,1722610238194,-500.0,0.00019178,2]
[333896820,1722610238205,-543.95,0.00019178,2]
[333896821,1722610238215,-500.0,0.00019178,2]
[333896822,1722610238224,-500.0,0.00019178,2]
[333896823,1722610238234,-500.0,0.00019178,2]
[333896824,1722610238244,-984.33,0.00019178,2]
[333896825,1722610238254,-500.0,0.00019178,2]
[333896826,1722610238264,-500.0,0.00019178,2]
[333896827,1722610238274,-500.0,0.00019178,2]
[333896829,1722610238283,-500.0,0.00019178,2]
[333896830,1722610238293,-500.0,0.00019178,2]
[333896833,1722610238303,-1050.68,0.00019178,2]
[333896834,1722610238312,-404.12477272,0.00019178,2]
[333896836,1722610238322,-500.0,0.00019178,2]
[333896839,1722610238332,-551.36,0.00019178,2]
[333896840,1722610238342,-1485.72,0.00019178,2]
[333896841,1722610238351,-500.0,0.00019178,2]
[333896842,1722610238360,-500.0,0.00019178,2]
[333896843,1722610238375,-574.28,0.00019178,2]
[333896844,1722610238384,-684.04,0.00019178,2]
[333896845,1722610238394,-500.0,0.00019178,2]
[333896846,1722610238404,-1367.38,0.00019178,2]
[333896847,1722610238414,-500.0,0.00019178,2]
[333896848,1722610238424,-306.47,0.00019178,2]
[333896850,1722610238434,-535.73351223,0.00019178,2]
[333896852,1722610238443,-1120.72,0.00019178,2]
[333896854,1722610238453,-2906.88,0.00019178,2]
[333896855,1722610238463,-500.0,0.00019178,2]
[333896856,1722610238473,-500.0,0.00019178,2]
[333896857,1722610238482,-1010.85,0.00019178,2]
[333896858,1722610238491,-500.0,0.00019178,2]
[333896859,1722610238502,-500.0,0.00019178,2]
[333896860,1722610238511,-500.0,0.00019178,2]
[333896861,1722610238520,-961.57,0.00019178,2]
[333896862,1722610238530,-637.38143243,0.00019178,2]
[333896863,1722610238539,-1455.83,0.00019178,2]
[333896864,1722610238549,-500.0,0.00019178,2]
[333896865,1722610238559,-500.0,0.00019178,2]
[333896866,1722610238568,-1109.65,0.00019178,2]
[333896867,1722610238579,-3038.71,0.00019178,2]
[333896868,1722610238588,-500.0,0.00019178,2]
[333896869,1722610238598,-4162.43,0.00019178,2]
[333896870,1722610238610,-500.0,0.00019178,2]
[333896871,1722610238624,-500.0,0.00019178,2]
[333896872,1722610238635,-500.0,0.00019178,2]
[333896874,1722610238646,-500.0,0.00019178,2]
[333896876,1722610238656,-500.0,0.00019178,2]
[333896878,1722610238668,-763.15,0.00019178,2]
[333896880,1722610238679,-500.0,0.00019178,2]
[333896883,1722610238692,-2561.26,0.00019178,2]
[333896885,1722610238704,-500.0,0.00019178,2]
[333896886,1722610238714,-500.0,0.00019178,2]
[333896887,1722610238724,-1002.52,0.00019178,2]
[333896888,1722610238734,-500.0,0.00019178,2]
[333896889,1722610238743,-500.0,0.00019178,2]
[333896890,1722610238753,-500.0,0.00019178,2]
[333896891,1722610238763,-500.0,0.00019178,2]
[333896892,1722610238772,-3614.99,0.00019178,2]
[333896893,1722610238782,-673.09,0.00019178,2]
[333896894,1722610238792,-586.91,0.00019178,2]
[333896895,1722610238801,-500.0,0.00019178,2]
[333896896,1722610238811,-500.0,0.00019178,2]
[333896897,1722610238821,-500.0,0.00019178,2]
[333896898,1722610238832,-500.0,0.00019178,2]
[333896899,1722610238842,-691.35,0.00019178,2]
[333896900,1722610238853,-502.29,0.00019178,2]
[333896901,1722610238864,-1362.56,0.00019178,2]
[333896902,1722610238878,-500.0,0.00019178,2]
[333896903,1722610238888,-500.0,0.00019178,2]
[333896904,1722610238898,-1035.95,0.00019178,2]
[333896905,1722610238907,-933.95,0.00019178,2]
[333896906,1722610238917,-1963.5,0.00019178,2]
[333896907,1722610238927,-500.0,0.00019178,2]
[333896908,1722610238937,-2632.81,0.00019178,2]
[333896909,1722610238946,-549.39,0.00019178,2]
[333896910,1722610238957,-500.0,0.00019178,2]
[333896911,1722610238967,-500.0,0.00019178,2]
[333896912,1722610238977,-3034.49,0.00019178,2]
[333896913,1722610238986,-500.0,0.00019178,2]
[333896914,1722610238996,-1757.87,0.00019178,2]
[333896915,1722610239007,-500.0,0.00019178,2]
[333896916,1722610239383,-1948.64,0.00019178,2]
[333896917,1722610239395,-500.0,0.00019178,2]
[333896918,1722610239405,-500.0,0.00019178,2]
[333896919,1722610239415,-2860.69,0.00019178,2]
[333896920,1722610239424,-649.56,0.00019178,2]
[333896921,1722610239435,-2029.55,0.00019178,2]
[333896922,1722610239445,-500.0,0.00019178,2]
[333896923,1722610239456,-500.0,0.00019178,2]
[333896924,1722610239466,-1673.87,0.00019178,2]
[333896925,1722610239476,-991.42,0.00019178,2]
[333896926,1722610239485,-500.0,0.00019178,2]
[333896927,1722610239495,-500.0,0.00019178,2]
[333896928,1722610239504,-500.0,0.00019178,2]
[333896929,1722610239514,-2076.38,0.00019178,2]
[333896930,1722610239523,-500.0,0.00019178,2]
[333896931,1722610239533,-938.29,0.00019178,2]
[333896932,1722610239542,-769.73,0.00019178,2]
[333896933,1722610239552,-500.0,0.00019178,2]
[333896934,1722610239561,-1317.57,0.00019178,2]
[333896935,1722610239571,-2298.56,0.00019178,2]
[333896936,1722610239585,-2318.82,0.00019178,2]
[333896937,1722610239594,-500.0,0.00019178,2]
[333896938,1722610239604,-500.0,0.00019178,2]
[333896939,1722610239615,-2021.58,0.00019178,2]
[333896940,1722610239629,-500.0,0.00019178,2]
[333896941,1722610239638,-614.7,0.00019178,2]
[333896942,1722610239647,-3062.95,0.00019178,2]
[333896943,1722610239657,-500.0,0.00019178,2]
[333896944,1722610239667,-500.0,0.00019178,2]
[333896945,1722610239678,-500.0,0.00019178,2]
[333896946,1722610239687,-1560.11,0.00019178,2]
[333896948,1722610239696,-1076.27,0.00019178,2]
[333896949,1722610239706,-4524.95,0.00019178,2]
[333896950,1722610239715,-500.0,0.00019178,2]
[333896951,1722610239725,-1808.32,0.00019178,2]
[333896952,1722610239734,-1007.66,0.00019178,2]
[333896953,1722610239744,-500.0,0.00019178,2]
[333896954,1722610239754,-1283.59,0.00019178,2]
[333896955,1722610239763,-1822.25,0.00019178,2]
[333896958,1722610239772,-500.0,0.00019178,2]
[333896961,1722610239782,-500.0,0.00019178,2]
[333896963,1722610239791,-151.0,0.00019178,2]
[333896965,1722610239800,-1599.52,0.00019178,2]
[333896966,1722610239810,-151.0,0.00019178,2]
[333896967,1722610239822,-3919.4,0.00019178,2]
[333896968,1722610239832,-151.0,0.00019178,2]
[333896969,1722610239842,-151.0,0.00019178,2]
[333896970,1722610239852,-151.0,0.00019178,2]
[333896971,1722610239862,-500.0,0.00019178,2]
[333896972,1722610239875,-824.51,0.00019178,2]
[333896973,1722610239884,-3100.92,0.00019178,2]
[333896974,1722610239894,-1444.79,0.00019178,2]
[333896975,1722610239903,-2061.21,0.00019178,2]
[333896976,1722610239913,-1111.98,0.00019178,2]
[333896977,1722610239923,-500.0,0.00019178,2]
[333896978,1722610239932,-916.19,0.00019178,2]
[333896979,1722610239941,-546.54,0.00019178,2]
[333896980,1722610239951,-1406.04,0.00019178,2]
[333896981,1722610239960,-1792.54,0.00019178,2]
[333896982,1722610239970,-500.0,0.00019178,2]
[333896983,1722610239979,-1876.05,0.00019178,2]
[333896984,1722610239989,-2032.84,0.00019178,2]
[333896985,1722610239999,-500.0,0.00019178,2]
[333896986,1722610240008,-500.0,0.00019178,2]
[333896987,1722610240017,-613.15,0.00019178,2]
[333896988,1722610240027,-908.08,0.00019178,2]
[333896989,1722610240036,-500.0,0.00019178,2]
[333896990,1722610240046,-805.28,0.00019178,2]
[333896991,1722610240060,-2162.05,0.00019178,2]
[333896992,1722610240069,-500.0,0.00019178,2]
[333896993,1722610240078,-1295.61,0.00019178,2]
[333896994,1722610240088,-500.0,0.00019178,2]
[333896995,1722610240098,-2159.43,0.00019178,2]
[333896996,1722610240107,-500.0,0.00019178,2]
[333896997,1722610240116,-2816.92,0.00019178,2]
[333896998,1722610240130,-500.0,0.00019178,2]
[333896999,1722610240139,-923.82,0.00019178,2]
[333897000,1722610240148,-444.62164124,0.00019178,2]
[333897001,1722610240199,-567.79835876,0.00019178,2]
[333897002,1722610240210,-1051.5,0.00019178,2]
[333897003,1722610240219,-500.0,0.00019178,2]
[333897004,1722610240229,-1245.56994206,0.00019178,2]
[333897005,1722610240241,-310.27,0.00019178,2]
[333897006,1722610240253,-637.32005794,0.00019178,2]
[333897007,1722610240263,-1569.16,0.00019178,2]
[333897008,1722610240273,-500.0,0.00019178,2]
[333897009,1722610240282,-476.18138019,0.00019178,2]
[333897010,1722610240297,-1131.55861981,0.00019178,2]
[333897011,1722610240307,-1263.78,0.00019178,2]
[333897012,1722610240317,-500.0,0.00019178,2]
[333897013,1722610240327,-500.0,0.00019178,2]
[333897014,1722610240337,-2188.91,0.00019178,2]
[333897015,1722610240347,-986.01,0.00019178,2]
[333897016,1722610240357,-500.0,0.00019178,2]
[333897017,1722610240375,-590.55,0.00019178,2]
[333897018,1722610240390,-2291.47,0.00019178,2]
[333897019,1722610240400,-500.0,0.00019178,2]
[333897020,1722610240410,-2278.77,0.00019178,2]
[333897021,1722610240421,-1680.45,0.00019178,2]
[333897022,1722610240432,-1421.42,0.00019178,2]
[333897023,1722610240442,-2424.93,0.00019178,2]
[333897024,1722610240451,-629.84,0.00019178,2]
[333897025,1722610240462,-500.0,0.00019178,2]
[333897026,1722610240472,-500.0,0.00019178,2]
[333897027,1722610240481,-755.49,0.00019178,2]
[333897028,1722610240490,-500.0,0.00019178,2]
[333897029,1722610240499,-544.12,0.00019178,2]
[333897030,1722610240509,-3124.4,0.00019178,2]
[333897031,1722610240519,-500.0,0.00019178,2]
[333897032,1722610240529,-3634.87,0.00019178,2]
[333897033,1722610240539,-500.0,0.00019178,2]
[333897034,1722610240549,-2497.93138018,0.00019178,2]
[333897035,1722610240563,-30.21861982,0.00019178,2]
[333897036,1722610240573,-500.0,0.00019178,2]
[333897037,1722610240584,-1636.79953358,0.00019178,2]
[333897135,1722610243168,-3856.78,0.00018234,2]
[333897137,1722610243180,-1416.9572789,0.00018234,2]
[333897139,1722610243189,-209.2893539,0.00018978,2]
[333897141,1722610243198,-208.97046642,0.00019178,2]
[333897143,1722610243207,-2729.7,0.00019178,2]
[333897145,1722610243216,-2865.09,0.00019178,2]
[333897147,1722610243225,-500.0,0.00019178,2]
[333897149,1722610243234,-493.40785202,0.00019178,2]
[333897151,1722610243246,-261.78214798,0.00019178,2]
[333897153,1722610243256,-2610.01,0.00019178,2]
[333897155,1722610243266,-500.0,0.00019178,2]
[333897157,1722610243276,-612.17,0.00019178,2]
[333897159,1722610243285,-500.0,0.00019178,2]
[333897161,1722610243295,-1144.14,0.00019178,2]
[333897163,1722610243304,-500.0,0.00019178,2]
[333897165,1722610243313,-585.43,0.00019178,2]
[333897167,1722610243323,-992.39,0.00019178,2]
[333897169,1722610243331,-762.19,0.00019178,2]
[333897171,1722610243341,-500.0,0.00019178,2]
[333897172,1722610243350,-913.88007688,0.00019178,2]
[333897175,1722610243364,-1484.81992312,0.00019178,2]
[333897177,1722610243376,-2728.48,0.00019178,2]
[333897179,1722610243385,-500.0,0.00019178,2]
[333897181,1722610243394,-1752.98,0.00019178,2]
[333897184,1722610243403,-500.0,0.00019178,2]
[333897186,1722610243412,-500.0,0.00019178,2]
[333897189,1722610243421,-301.85847688,0.00019178,2]
[333897192,1722610243432,-2762.90152312,0.00019178,2]
[333897197,1722610243442,-500.0,0.00019178,2]
[333897200,1722610243451,-500.0,0.00019178,2]
[333897203,1722610243462,-1515.34,0.00019178,2]
[333897206,1722610243472,-533.33,0.00019178,2]
[333897209,1722610243481,-651.83,0.00019178,2]
[333897212,1722610243490,-682.89227688,0.00019178,2]
[333897215,1722610243502,-1728.01772312,0.00019178,2]
[333897218,1722610243511,-1164.79,0.00019178,2]
[333897221,1722610243521,-500.0,0.00019178,2]
[333897224,1722610243531,-500.0,0.00019178,2]
[333897226,1722610243540,-4484.07,0.00019178,2]
[333897228,1722610243550,-1218.35,0.00019178,2]
[333897230,1722610243560,-2390.84,0.00019178,2]
[333897232,1722610243569,-515.33,0.00019178,2]
[333897234,1722610243582,-2191.14,0.00019178,2]
[333897236,1722610243592,-2012.11,0.00019178,2]
[333897238,1722610243602,-500.0,0.00019178,2]
[333897239,1722610243611,-1057.00297866,0.00019178,2]
[333897242,1722610243627,-153.20702134,0.00019178,2]
[333897244,1722610243636,-500.0,0.00019178,2]
[333897246,1722610243646,-500.0,0.00019178,2]
[333897248,1722610243657,-500.0,0.00019178,2]
[333897250,1722610243667,-500.0,0.00019178,2]
[333897252,1722610243676,-155.42867301,0.00019178,2]
[333897254,1722610243688,-526.12132699,0.00019178,2]
[333897256,1722610243697,-47.16156351,0.00019178,2]
[333897258,1722610243709,-1466.60843649,0.00019178,2]
[333897260,1722610243718,-500.0,0.00019178,2]
[333897262,1722610243728,-1558.18992832,0.00019178,2]
[333897264,1722610243739,-399.70833916,0.00019178,2]
[333897266,1722610243753,-680.72898073,0.00019178,2]
[333897268,1722610243764,-910.60655848,0.00019178,2]
[333897271,1722610243776,-668.74619331,0.00019178,2]
[333897273,1722610243785,-500.0,0.00019178,2]
[333897274,1722610243795,-890.59,0.00019178,2]
[333897276,1722610243804,-500.0,0.00019178,2]
[333897278,1722610243815,-583.73,0.00019178,2]
[333897280,1722610243825,-1180.69,0.00019178,2]
[333897282,1722610243835,-500.0,0.00019178,2]
[333897284,1722610243844,-617.39,0.00019178,2]
[333897286,1722610243853,-500.0,0.00019178,2]
[333897288,1722610243863,-2135.42457325,0.00019178,2]
[333897290,1722610243879,-1088.73542675,0.00019178,2]
[333897292,1722610243889,-2465.7,0.00019178,2]
[333897294,1722610243898,-678.19,0.00019178,2]
[333897296,1722610243908,-1194.6478695,0.00019178,2]
[333897298,1722610243920,-1811.1521305,0.00019178,2]
[333897300,1722610243930,-1122.65,0.00019178,2]
[333897302,1722610243940,-1370.26,0.00019178,2]
[333897304,1722610243951,-500.0,0.00019178,2]
[333897306,1722610243961,-1589.7,0.00019178,2]
[333897308,1722610243972,-1794.45,0.00019178,2]
[333897310,1722610243982,-804.38,0.00019178,2]
[333897312,1722610243993,-500.0,0.00019178,2]
[333897314,1722610244003,-500.0,0.00019178,2]
[333897317,1722610244014,-500.0,0.00019178,2]
[333897319,1722610244036,-1450.11,0.00019178,2]
[333897321,1722610244047,-2868.46974807,0.00019178,2]
[333897324,1722610244071,-434.64025193,0.00019178,2]
[333897326,1722610244081,-500.0,0.00019178,2]
[333897328,1722610244091,-500.0,0.00019178,2]
[333897330,1722610244102,-150.67257653,0.00019178,2]
[333897332,1722610244114,-349.32742347,0.00019178,2]
[333897334,1722610244127,-500.0,0.00019178,2]
[333897337,1722610244142,-848.34,0.00019178,2]
[333897338,1722610244152,-1392.18,0.00019178,2]
[333897340,1722610244162,-1139.11,0.00019178,2]
[333897342,1722610244172,-500.0,0.00019178,2]
[333897344,1722610244182,-2343.23,0.00019178,2]
[333897346,1722610244192,-500.0,0.00019178,2]
[333897348,1722610244202,-3003.35,0.00019178,2]
[333897350,1722610244212,-2034.03,0.00019178,2]
[333897352,1722610244222,-556.29,0.00019178,2]
[333897354,1722610244232,-1741.73,0.00019178,2]
[333897356,1722610244241,-500.0,0.00019178,2]
[333897358,1722610244251,-2590.6,0.00019178,2]
[333897360,1722610244262,-2693.7,0.00019178,2]
[333897362,1722610244272,-500.0,0.00019178,2]
[333897364,1722610244282,-923.86,0.00019178,2]
[333897366,1722610244292,-2032.93,0.00019178,2]
[333897368,1722610244302,-500.0,0.00019178,2]
[333897370,1722610244312,-500.0,0.00019178,2]
[333897372,1722610244323,-704.21,0.00019178,2]
[333897374,1722610244333,-500.0,0.00019178,2]
[333897376,1722610244343,-661.38,0.00019178,2]
[333897377,1722610244353,-500.0,0.00019178,2]
[333897378,1722610244363,-2050.13,0.00019178,2]
[333897379,1722610244375,-1206.14,0.00019178,2]
[333897380,1722610244391,-1666.01,0.00019178,2]
[333897381,1722610244401,-557.84,0.00019178,2]
[333897382,1722610244412,-162.09932146,0.00019178,2]
[333897383,1722610244423,-500.0,0.00019178,2]
[333897384,1722610244432,-500.0,0.00019178,2]
[333897385,1722610244444,-690.96,0.00019178,2]
[333897386,1722610244453,-500.0,0.00019178,2]
[333897388,1722610244463,-2132.31,0.00019178,2]
[333897390,1722610244472,-500.0,0.00019178,2]
[333897391,1722610244482,-500.0,0.00019178,2]
[333897393,1722610244492,-755.29,0.00019178,2]
[333897394,1722610244501,-1068.09,0.00019178,2]
[333897395,1722610244511,-500.0,0.00019178,2]
[333897396,1722610244520,-500.0,0.00019178,2]
[333897397,1722610244529,-1162.67,0.00019178,2]
[333897398,1722610244538,-500.0,0.00019178,2]
[333897399,1722610244547,-779.06,0.00019178,2]
[333897400,1722610244557,-2047.11,0.00019178,2]
[333897401,1722610244566,-876.44,0.00019178,2]
[333897403,1722610244578,-500.0,0.00019178,2]
[333897405,1722610244588,-500.0,0.00019178,2]
[333897406,1722610244598,-1534.97,0.00019178,2]
[333897408,1722610244610,-500.0,0.00019178,2]
[333897411,1722610244620,-500.0,0.00019178,2]
[333897413,1722610244635,-500.0,0.00019178,2]
[333897414,1722610244645,-1128.5,0.00019178,2]
[333897416,1722610244655,-3276.29,0.00019178,2]
[333897418,1722610244664,-880.79,0.00019178,2]
[333897420,1722610244673,-533.73,0.00019178,2]
[333897422,1722610244685,-500.0,0.00019178,2]
[333897424,1722610244694,-500.0,0.00019178,2]
[333897425,1722610244703,-500.0,0.00019178,2]
[333897426,1722610244712,-500.0,0.00019178,2]
[333897427,1722610244721,-500.0,0.00019178,2]
[333897428,1722610244731,-500.0,0.00019178,2]
[333897429,1722610244740,-500.0,0.00019178,2]
[333897430,1722610244749,-500.0,0.00019178,2]
[333897431,1722610244758,-759.47,0.00019178,2]
[333897432,1722610244768,-500.0,0.00019178,2]
[333897433,1722610244777,-2423.04,0.00019178,2]
[333897434,1722610244786,-500.0,0.00019178,2]
[333897435,1722610244795,-937.6,0.00019178,2]
[333897436,1722610244804,-637.64,0.00019178,2]
[333897437,1722610244814,-1337.45,0.00019178,2]
[333897438,1722610244825,-528.65,0.00019178,2]
[333897439,1722610244834,-808.53,0.00019178,2]
[333897440,1722610244844,-1101.5,0.00019178,2]
[333897441,1722610244853,-562.34,0.00019178,2]
[333897442,1722610245017,-500.0,0.00019178,2]
[333897443,1722610245077,-1104.03,0.00019178,2]
[333897444,1722610245087,-500.0,0.00019178,2]
[333897445,1722610245096,-933.53,0.00019178,2]
[333897446,1722610245106,-500.0,0.00019178,2]
[333897447,1722610245115,-571.31,0.00019178,2]
[333897448,1722610245129,-1795.07,0.00019178,2]
[333897449,1722610245138,-547.0310204,0.00019178,2]
[333897450,1722610245148,-500.0,0.00019178,2]
[333897451,1722610245157,-500.0,0.00019178,2]
[333897452,1722610245166,-500.0,0.00019178,2]
[333897453,1722610245175,-500.0,0.00019178,2]
[333897454,1722610245184,-1033.62,0.00019178,2]
[333897455,1722610245193,-864.44,0.00019178,2]
[333897456,1722610245202,-500.0,0.00019178,2]
[333897457,1722610245211,-634.74,0.00019178,2]
[333897458,1722610245220,-850.54,0.00019178,2]
[333897459,1722610245230,-500.0,0.00019178,2]
[333897460,1722610245239,-535.04,0.00019178,2]
[333897461,1722610245248,-500.0,0.00019178,2]
[333897462,1722610245257,-3181.96,0.00019178,2]
[333897463,1722610245266,-783.97,0.00019178,2]
[333897464,1722610245275,-947.43,0.00019178,2]
[333897465,1722610245285,-2158.29,0.00019178,2]
[333897466,1722610245293,-1118.1,0.00019178,2]
[333897467,1722610245302,-2146.85,0.00019178,2]
[333897468,1722610245312,-500.0,0.00019178,2]
[333897469,1722610245321,-500.0,0.00019178,2]
[333897470,1722610245330,-500.0,0.00019178,2]